[Event "Polish University-ch Teams 2024"]
[Site "Lublin"]
[Date "2024.02.25"]
[Round "7.18"]
[White "Pisarek, Elzbieta"]
[Black "Orlik, Sandra"]
[Result "0-1"]
[ECO "B30"]
[WhiteElo "1754"]
[BlackElo "1836"]
[Annotator "NA RC"]
[PlyCount "66"]
[EventDate "2024.02.22"]
[EventType "team-tourn"]
[EventCountry "POL"]
[SourceTitle "playchess.com"]
[Source "ChessBase"]
[SourceQuality "1"]
[TimeControl "900+5"]

1. e4 {[%emt 0:00:03]} c5 {[%emt 0:00:01]} 2. Nf3 {[%emt 0:00:01]} Nc6 {[%emt 0:00:01]} 3. Bb5 {[%emt 0:00:02]} Qc7 {[%emt 0:00:29]} 4. O-O {[%emt 0:00:13]} Nf6 {[%emt 0:00:07]} 5. Re1 {[%emt 0:00:14]} e6 {[%emt 0:00:28]} 6. c3 {[%emt 0:00:44]} a6 {[%emt 0:00:15]} 7. Bxc6 {[%emt 0:01:24]} bxc6 {[%emt 0:00:02]} 8. e5 {[%emt 0:00:15]} Nd5 {[%emt 0:00:13]} 9. d3 {[%emt 0:00:58]} Be7 {[%emt 0:00:06]} 10. Na3 {[%emt 0:00:52]} O-O {[%emt 0:00:09]} 11. Nc4 {[%emt 0:00:36]} f6 {[%emt 0:00:09]} 12. Qe2 {[%emt 0:00:54]} fxe5 {[%emt 0:00:24]} 13. Ncxe5 {[%emt 0:00:46]} d6 {[%emt 0:00:04]} 14. Nc4 {[%emt 0:00:50]} e5 {[%emt 0:00:35]} 15. h3 {[%emt 0:00:35]} Bf5 {[%emt 0:00:36]} 16. a4 {[%emt 0:01:30]} Rae8 {[%emt 0:00:22]} 17. a5 {[%emt 0:00:39]} Bg6 {[%emt 0:00:05]} 18. Qc2 {[%emt 0:01:43]} Bd8 {[%emt 0:00:28]} 19. Ng5 {[%emt 0:00:42]} Nf4 {[%emt 0:00:23]} 20. Bxf4 {[%emt 0:00:17]} Rxf4 {[%emt 0:00:04]} 21. Nf3 {[%emt 0:00:51]} Ref8 {[%emt 0:00:34]} 22. Ncd2 {[%emt 0:00:17]} Qd7 {[%emt 0:00:44]} 23. Re3 {[%emt 0:00:25]} Bf5 {[%emt 0:01:32]} 24. Kh2 {[%emt 0:01:03]} c4 {[%emt 0:00:59]} 25. g3 {[%emt 0:00:33]} Bxd3 {[%emt 0:00:04]} 26. Rxd3 {[%emt 0:00:03]} cxd3 {[%emt 0:00:02]} 27. Qxd3 {[%emt 0:00:01]} R4f6 {[%emt 0:00:07]} 28. Kg2 {[%emt 0:00:09]} d5 {[%emt 0:00:14]} 29. Re1 {[%emt 0:00:11]} Bc7 {[%emt 0:00:11]} 30. Rf1 {[%emt 0:00:23]} e4 {[%emt 0:00:05]} 31. Nxe4 {[%emt 0:00:13]} Rxf3 {[%emt 0:00:09]} 32. Qd2 {[%emt 0:00:10]} Qf5 {[%emt 0:00:11]} 33. Nc5 {[%emt 0:00:05]} Rxg3+ {[%emt 0:00:10]} 0-1

[Event "Polish University-ch Teams 2024"]
[Site "Lublin"]
[Date "2024.02.25"]
[Round "7.19"]
[White "Zaleski, Lukasz"]
[Black "Snihur, Piotr"]
[Result "0-1"]
[ECO "C47"]
[WhiteElo "2182"]
[BlackElo "2278"]
[Annotator "RC"]
[PlyCount "78"]
[EventDate "2024.02.22"]
[EventType "team-tourn"]
[EventCountry "POL"]
[SourceTitle "playchess.com"]
[Source "ChessBase"]
[SourceQuality "1"]
[TimeControl "900+5"]

1. e4 {[%emt 0:00:02]} e5 {[%emt 0:00:04]} 2. Nf3 {[%emt 0:00:02]} Nc6 {[%emt 0:00:01]} 3. Nc3 {[%emt 0:00:02]} Nf6 {[%emt 0:00:23]} 4. g3 {[%emt 0:00:01]} Be7 {[%emt 0:00:37]} 5. Bg2 {[%emt 0:00:04]} d6 {[%emt 0:00:03]} 6. O-O {[%emt 0:00:04]} O-O {[%emt 0:00:02]} 7. h3 {[%emt 0:00:07]} Rb8 {[%emt 0:00:40]} 8. a4 {[%emt 0:00:56]} a6 {[%emt 0:00:02]} 9. d4 {[%emt 0:00:10]} b5 {[%emt 0:03:22]} 10. axb5 {[%emt 0:00:02]} axb5 {[%emt 0:00:01]} 11. d5 {[%emt 0:00:50]} Nb4 {[%emt 0:00:01]} 12. Qe2 {[%emt 0:03:17]} Bd7 {[%emt 0:02:08]} 13. Rd1 {[%emt 0:03:18]} Qc8 {[%emt 0:01:47]} 14. Kh2 {[%emt 0:00:02]} c5 {[%emt 0:00:52]} 15. dxc6 {[%emt 0:01:37]} Bxc6 {[%emt 0:00:01]} 16. Nh4 {[%emt 0:00:08]} g6 {[%emt 0:00:28]} 17. Bh6 {[%emt 0:01:44]} Re8 {[%emt 0:00:15]} 18. Ra7 {[%emt 0:02:26]} Rb7 {[%emt 0:03:27]} 19. Rxb7 {[%emt 0:00:05]} Qxb7 {[%emt 0:00:04]} 20. Bg5 {[%emt 0:00:51]} Rd8 {[%emt 0:01:39]} 21. Bxf6 {[%emt 0:00:42]} Bxf6 {[%emt 0:00:01]} 22. Nf3 {[%emt 0:00:15]} Na6 {[%emt 0:00:24]} 23. Nd5 {[%emt 0:00:03]} Bxd5 {[%emt 0:00:06]} 24. Rxd5 {[%emt 0:00:05]} Nc7 {[%emt 0:00:02]} 25. Rd3 {[%emt 0:00:03]} Ne6 {[%emt 0:00:05]} 26. Qd2 {[%emt 0:00:08]} Qc6 {[%emt 0:00:09]} 27. c3 {[%emt 0:00:02]} Nc5 {[%emt 0:00:12]} 28. Rd5 {[%emt 0:00:04]} Nxe4 {[%emt 0:00:21]} 29. Qd1 {[%emt 0:00:12]} Nxf2 {[%emt 0:00:05]} 30. Qb3 {[%emt 0:00:02]} e4 {[%emt 0:00:03]} 31. Nd4 {[%emt 0:00:08]} Qe8 {[%emt 0:00:03]} 32. Rxb5 {[%emt 0:00:06]} e3 {[%emt 0:00:09]} 33. Nc6 {[%emt 0:00:03]} Rc8 {[%emt 0:00:03]} 34. Kg1 {[%emt 0:00:07]} Rxc6 {[%emt 0:00:03]} 35. Bxc6 {[%emt 0:00:01]} Qxc6 {[%emt 0:00:01]} 36. Rb8+ {[%emt 0:00:05]} Kg7 {[%emt 0:00:00]} 37. Qb7 {[%emt 0:00:09]} Nxh3+ {[%emt 0:00:12]} 38. Kh2 {[%emt 0:00:06]} Qxb7 {[%emt 0:00:01]} 39. Rxb7 {[%emt 0:00:00]} e2 {[%emt 0:00:01]} 0-1

[Event "Polish University-ch Teams 2024"]
[Site "Lublin"]
[Date "2024.02.25"]
[Round "7.20"]
[White "Sliwicka, Alicja"]
[Black "Demianowicz, Maciej"]
[Result "0-1"]
[ECO "B33"]
[WhiteElo "2309"]
[BlackElo "1972"]
[Annotator "TA"]
[PlyCount "116"]
[EventDate "2024.02.22"]
[EventType "team-tourn"]
[EventCountry "POL"]
[SourceTitle "playchess.com"]
[Source "ChessBase"]
[SourceQuality "1"]
[TimeControl "900+5"]

{[%evp 12,116,76,64,50,42,33,0,0,0,6,9,31,25,25,27,15,-37,0,-14,81,0,3,7,0,22,23,0,0,0,0,-21,-13,-41,-29,-48,-39,-53,22,27,52,28,68,58,69,70,74,51,46,0,0,0,6,0,0,0,0,0,0,-25,-22,-68,-16,-255,-247,-247,-221,-221,-188,-181,0,-220,-177,-186,-130,-137,-137,-173,-136,-2128,-1902,-29982,-29983,-29984,-29985,-29988,-29989,-29989,-29989,-29989,-29990,-29990,-29989,-29989,-29990,-29990,-29991,-29991,-29981,-29980,-29980,-29980,-29979,-29987,-29988,-29988,-29989]} 1. e4 {[%emt 0:15:10]} c5 {[%emt 0:00:01]} 2. Nf3 {[%emt 0:00:00][%cal Bg1f3,Bf3d4,Bd4b5][%mdl 32]} Nc6 {[%emt 0:00:00]} 3. d4 {[%emt 0:00:00]} cxd4 {[%emt 0:00:01]} 4. Nxd4 {[%emt 0:00:00]} Nf6 {[%emt 0:00:00]} 5. Nc3 {[%emt 0:00:00]} e5 {[%emt 0:00:01]} 6. Ndb5 {[%emt 0:00:00]} h6 {[%emt 0:00:02]} 7. Nd5 {[%emt 0:00:00]} Nxd5 {[%emt 0:00:01]} 8. exd5 {[%emt 0:00:00][%cal Od5d6] d6! is the strong threat.} a6 $1 {[%emt 0:00:01]} 9. dxc6 {[%emt 0:00:00]} axb5 {[%emt 0:00:01] The position is equal.} 10. cxd7+ {[%emt 0:00:00]} Bxd7 {[%emt 0:00:01]} 11. Bd3 {[%emt 0:00:00]} Qc7 {[%emt 0:01:35]} 12. O-O {[%emt 0:00:00]} Bd6 {[%emt 0:00:09]} 13. Qe2 {[%emt 0:00:00]} b4 {[%emt 0:00:06]} 14. f4 {[%emt 0:00:00]} (14. Bd2 $11) 14... Ra5 {[%emt 0:01:34]} 15. f5 {[%emt 0:00:00]} Qb6+ {[%emt 0:02:09]} (15... O-O $11 {remains equal.} 16. f6 e4 17. Qxe4 Bxh2+ 18. Kh1 g6) 16. Be3 {[%emt 0:00:00]} (16. Kh1 $1 $16) 16... Bc5 $11 {[%emt 0:00:02]} 17. Bxc5 {[%emt 0:00:00]} Qxc5+ {[%emt 0:00:01]} 18. Kh1 {[%emt 0:00:00]} Bc6 {[%emt 0:00:37]} 19. Rae1 {[%emt 0:00:00]} f6 {[%emt 0:03:08][%cal Oe8g8]} 20. Bc4 {[%emt 0:00:00]} Kd8 {[%emt 0:00:19][%cal Be8d8,Bd8c7,Bc7c6,Bc6b6][%mdl 32]} 21. Qg4 {[%emt 0:00:00][%cal Oc2c3] Strongly threatening c3!} Qe7 {[%emt 0:00:02]} 22. Be6 {[%emt 0:00:00]} Kc7 {[%emt 0:00:16]} 23. Rd1 {[%emt 0:00:00]} h5 {[%emt 0:00:03]} 24. Qc4 {[%emt 0:00:00] Threatens to win with Rd7+.} b5 {[%emt 0:00:05]} ({Black should try} 24... Qc5 $15 25. Qe2 Raa8) 25. Qb3 {[%emt 0:00:00]} h4 {[%emt 0:00:27]} 26. Bd5 {[%emt 0:00:00]} Rd8 {[%emt 0:00:47]} 27. Bxc6 {[%emt 0:00:00]} Kxc6 {[%emt 0:00:09]} 28. c3 $1 {[%emt 0:00:00]} bxc3 {[%emt 0:02:53]} 29. Qxc3+ {[%emt 0:00:00]} Kb6 {[%emt 0:00:01]} 30. Rxd8 {[%emt 0:01:05]} (30. Qe3+ $1 $14 Ka6 31. a3) 30... Qxd8 $14 {[%emt 0:00:02][%mdl 4096] Endgame. KQR-KQR} 31. Rc1 {[%emt 0:00:43]} Qd7 {[%emt 0:00:22][%cal Oa5a4] Dodges Qc6+} 32. a3 {[%emt 0:00:21]} Ra4 {[%emt 0:00:06][%cal Oa4c4] Hoping for ...Rc4!} 33. Qc5+ {[%emt 0:00:11]} Kb7 {[%emt 0:00:01]} 34. h3 {[%emt 0:00:12]} Rd4 {[%emt 0:00:01]} 35. b4 {[%emt 0:00:09]} Rd5 {[%emt 0:00:19]} 36. Qc3 {[%emt 0:00:05]} (36. Qc2 $11 {was preferrable.}) 36... e4 {[%emt 0:00:03]} (36... Qxf5 37. Qc6+ Kb8 38. Qxd5) (36... Rd1+ $15 37. Rxd1 Qxd1+ 38. Kh2 Qd6) 37. Qe3 $2 {[%emt 0:00:05]} (37. Qe1 $11 {and White has nothing to worry.}) 37... Rd1+ $1 $19 {[%emt 0:00:01]} (37... Qxf5 38. Qe2 $11) 38. Rxd1 {[%emt 0:00:04]} Qxd1+ {[%emt 0:00:01] KQ-KQ} 39. Kh2 {[%emt 0:00:02]} Qd3 {[%emt 0:00:01]} 40. Qc5 {[%emt 0:00:07]} e3 $2 {[%emt 0:00:08]} (40... Qxa3 41. Qxb5+ Ka7 42. Qc5+ Kb7 43. Qe7+ Kb6 44. Qc5+ (44. Qxg7 Qc3 $11) (44. Qxe4 Qg3+ 45. Kg1 Kb5 $11) 44... Kb7 45. Qd5+ Kb6 46. Qxe4 Qg3+ 47. Kg1 $11) (40... Qc4 $1 $19 {[%cal Rc4c5] ( -> ...Qxc5)} 41. Qf8 e3 (41... Qc7+ 42. Kg1 $11)) 41. Qe7+ {[%emt 0:00:03]} (41. Kg1 $1 $11 {and White stays safe.}) 41... Kc6 {[%emt 0:00:00]} 42. Qc5+ {[%emt 0:00:10] [#]} Kd7 $1 {[%emt 0:00:01]} 43. Qa7+ {[%emt 0:00:03]} Ke8 {[%emt 0:00:22] Black is more active.} 44. Qb8+ {[%emt 0:00:03]} Ke7 {[%emt 0:00:23] aiming for ...Qd6+.} 45. Qb7+ $2 {[%emt 0:00:04][%mdl 8192] [#]} (45. Qa7+ $17 Kf8 46. Qb8+ Kf7 47. Qb7+ Kg8 48. Qc8+ Kh7 49. Qe8) 45... Kd6 $1 {[%emt 0:00:18]} 46. Qf3 {[%emt 0:00:11] Against e2} Ke5 {[%emt 0:00:09] Black mates.} (46... Qxa3 $2 47. Qe4 $19) 47. Kg1 {[%emt 0:00:05]} Kd4 {[%emt 0:00:07]} ({Inferior is} 47... Qxf5 48. Qxe3+ Qe4 49. Qc5+ Qd5 50. Qe3+ Kf5 51. Qf2+ Kg5 52. Qe3+ Kf5 53. Qf2+ Kg5 54. g3 $11) 48. Kh2 {[%emt 0:00:05]} e2 {[%emt 0:00:11]} 49. Qf2+ {[%emt 0:00:04]} Qe3 {[%emt 0:00:01]} 50. Qxh4+ {[%emt 0:00:02]} Kd3 {[%emt 0:00:10]} 51. Qe1 {[%emt 0:00:03]} Kc2 {[%emt 0:01:01]} 52. a4 {[%emt 0:00:03]} Qd2 {[%emt 0:00:07]} 53. Qa1 {[%emt 0:00:09]} Qf4+ {[%emt 0:00:19]} 54. Kg1 {[%emt 0:00:07]} Qf1+ {[%emt 0:00:08]} 55. Qxf1 {[%emt 0:00:03]} exf1=Q+ {[%emt 0:00:01]} 56. Kxf1 {[%emt 0:00:02]} bxa4 {[%emt 0:00:00]} 57. b5 {[%emt 0:00:05]} a3 {[%emt 0:00:01]} 58. b6 {[%emt 0:00:01]} a2 {[%emt 0:00:00] Weighted Error Value: White=0.43/Black=0.16 (very precise) .  Loses game:     	White=3     	---        Missed win:     	---       	Black=1      Mistake:       	White=4     	Black=3      Inaccurate:     	White=3     	Black=2      OK:         	White=14    	Black=11     Best:        	White=4     	Black=3      Strong:       	White=1     	Black=4} 0-1

[Event "Polish University-ch Teams 2024"]
[Site "Lublin"]
[Date "2024.02.25"]
[Round "7.21"]
[White "Rogala, Milosz"]
[Black "Brzezinski, Mateusz"]
[Result "0-1"]
[ECO "B33"]
[WhiteElo "1839"]
[BlackElo "2176"]
[Annotator "ChessBase"]
[PlyCount "112"]
[EventDate "2024.02.22"]
[EventType "team-tourn"]
[EventCountry "POL"]
[SourceTitle "playchess.com"]
[Source "ChessBase"]
[SourceQuality "1"]
[TimeControl "900+5"]

1. e4 {[%emt 0:00:17]} c5 {[%emt 0:00:01]} 2. Nf3 {[%emt 0:00:10]} Nc6 {[%emt 0:00:01]} 3. d4 {[%emt 0:00:04]} cxd4 {[%emt 0:00:01]} 4. Nxd4 {[%emt 0:00:02]} Nf6 {[%emt 0:00:01]} 5. Nc3 {[%emt 0:00:04]} e5 {[%emt 0:00:01]} 6. Ndb5 {[%emt 0:00:09]} d6 {[%emt 0:00:01]} 7. Bg5 {[%emt 0:00:23]} a6 {[%emt 0:00:01]} 8. Na3 {[%emt 0:00:02]} b5 {[%emt 0:00:01]} 9. Bxf6 {[%emt 0:00:12]} gxf6 {[%emt 0:00:01]} 10. Nd5 {[%emt 0:00:02]} Bg7 {[%emt 0:00:01]} 11. g3 {[%emt 0:00:27]} Ne7 {[%emt 0:00:04]} 12. Bg2 {[%emt 0:00:35]} Bb7 {[%emt 0:00:10]} 13. Nxe7 {[%emt 0:00:15]} Qxe7 {[%emt 0:00:02]} 14. c3 {[%emt 0:00:26]} f5 {[%emt 0:00:05]} 15. f3 {[%emt 0:03:12]} f4 {[%emt 0:01:15]} 16. Qe2 {[%emt 0:01:57]} fxg3 {[%emt 0:01:54]} 17. hxg3 {[%emt 0:00:05]} Qg5 {[%emt 0:00:01]} 18. Nxb5 {[%emt 0:01:48]} Qxg3+ {[%emt 0:00:04]} 19. Kf1 {[%emt 0:00:01]} Rd8 {[%emt 0:03:38]} 20. Nc7+ {[%emt 0:01:21]} Kf8 {[%emt 0:01:47]} 21. Rd1 {[%emt 0:00:38]} h5 {[%emt 0:00:23]} 22. Qf2 {[%emt 0:01:03]} Qxf2+ {[%emt 0:03:19]} 23. Kxf2 {[%emt 0:00:02]} h4 {[%emt 0:00:26]} 24. Bh3 {[%emt 0:01:14]} Bh6 {[%emt 0:00:04]} 25. Rd3 {[%emt 0:00:32]} Bf4 {[%emt 0:00:01]} 26. Rhd1 {[%emt 0:00:20]} Rh6 {[%emt 0:00:03]} 27. Nd5 {[%emt 0:00:15]} Bg3+ {[%emt 0:00:15]} 28. Kg2 {[%emt 0:00:13]} Bc6 {[%emt 0:00:17]} 29. c4 {[%emt 0:00:18]} Rg6 {[%emt 0:00:21]} 30. Bg4 {[%emt 0:00:20]} Kg7 {[%emt 0:00:01]} 31. Ne3 {[%emt 0:00:07]} Bf4 {[%emt 0:00:58]} 32. Nf5+ {[%emt 0:00:04]} Kh7 {[%emt 0:00:05]} 33. Ne7 {[%emt 0:00:19]} Rxg4+ {[%emt 0:00:05]} 34. fxg4 {[%emt 0:00:08]} Bxe4+ {[%emt 0:00:01]} 35. Kh3 {[%emt 0:00:03]} Bxd3 {[%emt 0:00:08]} 36. Rxd3 {[%emt 0:00:01]} Kg7 {[%emt 0:00:45]} 37. Rxd6 {[%emt 0:00:33]} Rxd6 {[%emt 0:00:51]} 38. Nf5+ {[%emt 0:00:01]} Kf6 {[%emt 0:00:01]} 39. Nxd6 {[%emt 0:00:01]} Ke6 {[%emt 0:00:01]} 40. Ne4 {[%emt 0:00:18]} f5 {[%emt 0:00:01]} 41. gxf5+ {[%emt 0:00:07]} Kxf5 {[%emt 0:00:01]} 42. Nd6+ {[%emt 0:00:01]} Ke6 {[%emt 0:00:07]} 43. Ne4 {[%emt 0:00:01]} Bc1 {[%emt 0:00:02]} 44. Kxh4 {[%emt 0:00:18]} Kf5 {[%emt 0:00:01]} 45. Nd6+ {[%emt 0:00:08]} Kf4 {[%emt 0:00:01]} 46. b3 {[%emt 0:00:12]} e4 {[%emt 0:00:06]} 47. Nxe4 {[%emt 0:00:01]} Kxe4 {[%emt 0:00:01]} 48. b4 {[%emt 0:00:01]} Kd4 {[%emt 0:00:01]} 49. b5 {[%emt 0:00:02]} a5 {[%emt 0:00:02]} 50. b6 {[%emt 0:00:00]} Bf4 {[%emt 0:00:02]} 51. Kg4 {[%emt 0:00:02]} Bb8 {[%emt 0:00:01]} 52. Kf3 {[%emt 0:00:07]} Kxc4 {[%emt 0:00:01]} 53. Ke4 {[%emt 0:00:03]} Kc3 {[%emt 0:00:01]} 54. Kd5 {[%emt 0:00:02]} a4 {[%emt 0:00:01]} 55. Kc5 {[%emt 0:00:19]} a3 {[%emt 0:00:01]} 56. Kc6 {[%emt 0:00:10]} Kb2 {[%emt 0:00:01]} 0-1

[Event "Polish University-ch Teams 2024"]
[Site "Lublin"]
[Date "2024.02.25"]
[Round "7.22"]
[White "Drozdowski, Konrad"]
[Black "Poplawski, Maciej"]
[Result "1/2-1/2"]
[ECO "A07"]
[WhiteElo "2117"]
[BlackElo "1900"]
[Annotator "NA"]
[PlyCount "102"]
[EventDate "2024.02.22"]
[EventType "team-tourn"]
[EventCountry "POL"]
[SourceTitle "playchess.com"]
[Source "ChessBase"]
[SourceQuality "1"]
[TimeControl "900+5"]

1. Nf3 {[%emt 0:00:02]} d5 {[%emt 0:00:13]} 2. g3 {[%emt 0:00:02]} Nf6 {[%emt 0:00:04]} 3. Bg2 {[%emt 0:00:01]} c6 {[%emt 0:00:05]} 4. O-O {[%emt 0:00:03]} Bg4 {[%emt 0:00:16]} 5. h3 {[%emt 0:00:26]} Bh5 {[%emt 0:00:02]} 6. d4 {[%emt 0:00:04]} Qb6 {[%emt 0:00:24]} 7. Ne5 {[%emt 0:00:55]} Nbd7 {[%emt 0:00:39]} 8. f4 {[%emt 0:01:06]} Nxe5 {[%emt 0:00:53]} 9. fxe5 {[%emt 0:00:01]} Ne4 {[%emt 0:02:17]} 10. Kh2 {[%emt 0:01:17]} e6 {[%emt 0:00:59]} 11. c3 {[%emt 0:00:22]} Be7 {[%emt 0:00:44]} 12. Nd2 {[%emt 0:02:56]} Nxd2 {[%emt 0:01:03]} 13. Qxd2 {[%emt 0:00:42]} O-O {[%emt 0:00:12]} 14. e4 {[%emt 0:00:26]} f6 {[%emt 0:02:23]} 15. exf6 {[%emt 0:01:34]} Bxf6 {[%emt 0:01:07]} 16. Qc2 {[%emt 0:00:10]} Bg6 {[%emt 0:00:11]} 17. b3 {[%emt 0:00:46]} Qa6 {[%emt 0:00:33]} 18. Bf4 {[%emt 0:00:18]} c5 {[%emt 0:01:51]} 19. Qd1 {[%emt 0:00:42]} cxd4 {[%emt 0:00:16]} 20. e5 {[%emt 0:00:07]} Be7 {[%emt 0:00:11]} 21. Qxd4 {[%emt 0:04:50]} Rac8 {[%emt 0:00:22]} 22. Qd2 {[%emt 0:00:00]} Qa5 {[%emt 0:00:22]} 23. b4 {[%emt 0:00:00]} Qa3 {[%emt 0:00:03]} 24. Rac1 {[%emt 0:00:00]} a5 {[%emt 0:00:01]} 25. bxa5 {[%emt 0:00:00]} Qxa5 {[%emt 0:00:03]} 26. Be3 {[%emt 0:00:00]} Ba3 {[%emt 0:00:05]} 27. Rxf8+ {[%emt 0:00:00]} Rxf8 {[%emt 0:00:17]} 28. Rf1 {[%emt 0:00:00]} Rc8 {[%emt 0:00:19]} 29. Bd4 {[%emt 0:00:00]} Bc5 {[%emt 0:00:13]} 30. Rd1 {[%emt 0:00:10]} Bxd4 {[%emt 0:00:27]} 31. cxd4 {[%emt 0:00:01]} Qa3 {[%emt 0:00:10]} 32. Qf2 {[%emt 0:00:29]} Rc2 {[%emt 0:00:11]} 33. Rd2 {[%emt 0:00:01]} Qxa2 {[%emt 0:00:02]} 34. Rxc2 {[%emt 0:00:11]} Qxc2 {[%emt 0:00:03]} 35. Qxc2 {[%emt 0:00:02]} Bxc2 {[%emt 0:00:01]} 36. Bf1 {[%emt 0:00:01]} Bb3 {[%emt 0:00:07]} 37. Bb5 {[%emt 0:00:04]} Bc4 {[%emt 0:01:01]} 38. Bd7 {[%emt 0:00:02]} Kf7 {[%emt 0:00:00]} 39. Kg2 {[%emt 0:00:00]} Ke7 {[%emt 0:00:00]} 40. Bc8 {[%emt 0:00:02]} b5 {[%emt 0:00:00]} 41. Kf2 {[%emt 0:00:01]} b4 {[%emt 0:00:00]} 42. Ke3 {[%emt 0:00:00]} g5 {[%emt 0:00:09]} 43. h4 {[%emt 0:00:07]} gxh4 {[%emt 0:00:05]} 44. gxh4 {[%emt 0:00:00]} Bf1 {[%emt 0:00:02]} 45. Kd2 {[%emt 0:00:03]} Bc4 {[%emt 0:00:10]} 46. Kc2 {[%emt 0:00:03]} Ba2 {[%emt 0:00:07]} 47. Kb2 {[%emt 0:00:01]} Bc4 {[%emt 0:00:01]} 48. Kc2 {[%emt 0:00:01]} Ba2 {[%emt 0:00:03]} 49. Kb2 {[%emt 0:00:00]} Bc4 {[%emt 0:00:01]} 50. Kc2 {[%emt 0:00:14]} Kf7 {[%emt 0:00:17]} 51. Kb2 {[%emt 0:00:01]} Ke7 {[%emt 0:00:08]} 1/2-1/2

[Event "Polish University-ch Teams 2024"]
[Site "Lublin"]
[Date "2024.02.25"]
[Round "7.23"]
[White "Twardowski, Hubert"]
[Black "Sujkowski, Dominik"]
[Result "1/2-1/2"]
[ECO "B33"]
[WhiteElo "1848"]
[BlackElo "1562"]
[Annotator "NA"]
[PlyCount "73"]
[EventDate "2024.02.22"]
[EventType "team-tourn"]
[EventCountry "POL"]
[SourceTitle "playchess.com"]
[Source "ChessBase"]
[SourceQuality "1"]
[TimeControl "900+5"]

1. e4 {[%emt 0:00:19]} c5 {[%emt 0:00:02]} 2. Nf3 {[%emt 0:00:06]} Nc6 {[%emt 0:00:01]} 3. d4 {[%emt 0:00:07]} cxd4 {[%emt 0:00:02]} 4. Nxd4 {[%emt 0:00:01]} Nf6 {[%emt 0:00:01]} 5. Nc3 {[%emt 0:00:05]} e5 {[%emt 0:00:02]} 6. Ndb5 {[%emt 0:00:23]} d6 {[%emt 0:00:01]} 7. Bg5 {[%emt 0:00:03]} a6 {[%emt 0:00:03]} 8. Na3 {[%emt 0:00:01]} b5 {[%emt 0:00:01]} 9. Nd5 {[%emt 0:00:26]} Be7 {[%emt 0:00:02]} 10. Bxf6 {[%emt 0:00:25]} Bxf6 {[%emt 0:00:01]} 11. c3 {[%emt 0:00:24]} Bg5 {[%emt 0:00:02]} 12. h4 {[%emt 0:00:08]} Bh6 {[%emt 0:00:03]} 13. Nc2 {[%emt 0:00:57]} O-O {[%emt 0:01:03]} 14. g3 {[%emt 0:02:12]} Be6 {[%emt 0:00:42]} 15. Nce3 {[%emt 0:00:08]} Bxe3 {[%emt 0:00:15]} 16. Nxe3 {[%emt 0:00:01]} Ne7 {[%emt 0:00:45]} 17. Bg2 {[%emt 0:00:08]} Rb8 {[%emt 0:02:27]} 18. Qd2 {[%emt 0:03:49]} Qb6 {[%emt 0:02:18]} 19. O-O {[%emt 0:02:04]} Rfd8 {[%emt 0:03:05]} 20. Nd5 {[%emt 0:02:00]} Bxd5 {[%emt 0:00:33]} 21. exd5 {[%emt 0:00:06]} b4 {[%emt 0:00:53]} 22. c4 {[%emt 0:00:01]} Nf5 {[%emt 0:00:52]} 23. Kh2 {[%emt 0:00:10]} Qc5 {[%emt 0:00:37]} 24. Rac1 {[%emt 0:00:41]} Nd4 {[%emt 0:00:16]} 25. f4 {[%emt 0:00:35]} f6 {[%emt 0:01:17]} 26. Qf2 {[%emt 0:01:00]} b3 {[%emt 0:00:47]} 27. a3 {[%emt 0:00:01]} Rf8 {[%emt 0:00:29]} 28. Bh3 {[%emt 0:00:15]} Rbe8 {[%emt 0:00:26]} 29. Rfd1 {[%emt 0:00:26]} a5 {[%emt 0:00:16]} 30. h5 {[%emt 0:00:05]} a4 {[%emt 0:00:05]} 31. h6 {[%emt 0:00:01]} g6 {[%emt 0:00:03]} 32. Re1 {[%emt 0:00:27]} f5 {[%emt 0:00:02]} 33. fxe5 {[%emt 0:00:05]} Rxe5 {[%emt 0:00:08]} 34. Rxe5 {[%emt 0:00:02]} dxe5 {[%emt 0:00:01]} 35. Re1 {[%emt 0:00:05]} Re8 {[%emt 0:00:09]} 36. Qf1 {[%emt 0:00:07]} Re7 {[%emt 0:00:07]} 37. Kg2 {[%emt 0:00:16]} 1/2-1/2